bitfinex/quotes_ETHUSD_20250422
["timestamp","ask_amount","ask_price","bid_price","bid_amount"]
[1745319909471,0.9,1625.4,1625.2,4.0358142]
[1745319909671,0.32084963,1625.5,1625.3,0.7646]
[1745319910618,0.32084963,1625.5,1625.4,0.19206739]
[1745319912078,6.47280287,1625.5,1625.4,0.19206739]
[1745319912283,7.27610287,1625.5,1625.4,0.19206739]
[1745319912607,8.61888982,1625.5,1625.4,0.19206739]
[1745319913118,8.61888982,1625.5,1625.1,0.8215]
[1745319913319,1.12414963,1625.5,1625.1,0.8215]
[1745319914213,1.12414963,1625.5,1625.2,0.19206894]
[1745319915320,7.27612519,1625.5,1625.2,0.19206894]
[1745319915510,7.27612519,1625.5,1625.3,0.19206894]
[1745319915810,7.27610864,1625.5,1625.3,0.19206894]
[1745319916215,14.15604724,1625.5,1625.3,0.19206894]
[1745319916418,8.0037195,1625.5,1625.3,0.19206894]
[1745319916714,8.0037195,1625.5,1625.1,0.8215]
[1745319917549,14.15594514,1625.5,1625.1,0.8215]
[1745319917677,14.15594514,1625.5,1625.2,0.19208034]
[1745319917881,8.0037195,1625.5,1625.2,0.19208034]
[1745319918222,0.8033,1625.3,1625.2,0.19208034]
[1745319919111,0.32085928,1625.3,1625.2,0.19208034]
[1745319920593,0.32085928,1625.3,1625.2,3.97429629]
[1745319920796,6.08,1625.4,1625.2,3.97429629]
[1745319921116,6.08,1625.4,1625.2,0.19208034]
[1745319921887,6.08,1625.4,1625.3,0.19208034]
[1745319922221,8.67388725,1625.4,1625.3,0.19208034]
[1745319922407,14.82621898,1625.4,1625.3,0.19208034]
[1745319923131,8.67388725,1625.4,1625.3,0.19208034]
[1745319923334,6.8833,1625.4,1625.3,0.19208034]
[1745319923534,6.08,1625.4,1625.3,0.19208034]
[1745319924441,6.08,1625.4,1625.3,0.19207174]
[1745319926037,18.38832578,1625.5,1625.3,0.19207174]
[1745319926336,18.38832578,1625.5,1625.1,0.8215]
[1745319926518,20.84233966,1625.5,1625.1,0.8215]
[1745319927132,12.2363,1625.5,1625.1,0.8215]
[1745319927820,12.2363,1625.5,1625.2,0.19206829]
[1745319928401,6.08,1625.5,1625.2,0.19206829]
[1745319928939,6.08,1625.5,1625.3,0.7774]
[1745319929107,6.08,1625.5,1625.4,0.19206829]
[1745319931801,0.7523,1625.6,1625.4,0.85849599]
[1745319932001,0.7523,1625.6,1625.4,0.19206829]
[1745319932720,0.9,1625.5,1625.4,0.19206829]
[1745319935534,0.7523,1625.6,1625.4,0.19206829]
[1745319935939,8.76976058,1625.6,1625.4,0.19206829]
[1745319936138,8.76976058,1625.6,1625.2,3.78221595]
[1745319936139,8.76976058,1625.6,1625.5,0.19206829]
[1745319936698,8.76976058,1625.6,1625.1,0.7774]
[1745319937135,14.9217053,1625.6,1625.1,0.7774]
[1745319937335,8.76976058,1625.6,1625.1,0.7774]
[1745319937539,8.76976058,1625.6,1625.1,1.27896406]
[1745319938033,8.76976058,1625.6,1625.2,0.19206174]
[1745319938232,0.32084299,1625.5,1625.2,0.19206174]
[1745319939432,0.32084299,1625.5,1625.3,0.19206174]
[1745319940228,0.32084299,1625.5,1625.4,0.19206174]
[1745319941241,6.90400946,1625.6,1625.4,0.19206174]
[1745319941442,0.7523,1625.6,1625.3,0.8238]
[1745319942043,6.15261961,1625.4,1625.0,0.4560247]
[1745319942248,6.15261961,1625.4,1624.9,0.8238]
[1745319942613,6.15261961,1625.4,1625.0,0.68114529]
[1745319943122,6.90961354,1625.5,1625.0,0.68114529]
[1745319943329,6.90961354,1625.5,1625.1,0.19207122]
[1745319943537,6.90961354,1625.5,1625.2,0.68104452]
[1745319943741,8.46383852,1625.5,1625.1,0.19207122]
[1745319943958,8.46383852,1625.5,1625.2,0.68104452]
[1745319944165,8.46383852,1625.5,1625.1,0.19207122]
[1745319944336,8.46383852,1625.5,1625.2,0.68104452]
[1745319944539,8.46383852,1625.5,1625.1,0.19207122]
[1745319944727,8.46383852,1625.5,1625.2,0.68104452]
[1745319945056,8.46383852,1625.5,1625.2,0.19207122]
[1745319945255,8.46383852,1625.5,1625.3,0.68099415]
[1745319945662,2.31182498,1625.5,1625.3,0.68099415]
[1745319945838,0.7576,1625.5,1625.3,0.68099415]
[1745319946039,0.7576,1625.5,1625.4,0.19207122]
[1745319946429,0.7576,1625.5,1625.4,0.873015]
[1745319946631,6.1066,1625.5,1625.4,0.19207122]
[1745319946858,6.1066,1625.5,1625.4,0.873015]
[1745319947031,6.1066,1625.5,1625.4,0.19207122]
[1745319947228,5.349,1625.5,1625.4,0.873015]
[1745319948064,12.25855324,1625.5,1625.4,0.873015]
[1745319948263,14.09958155,1625.5,1625.4,0.873015]
[1745319948769,7.94762831,1625.5,1625.4,0.873015]
[1745319949239,14.09958155,1625.5,1625.4,0.873015]
[1745319953137,14.09958155,1625.5,1625.4,0.68094378]
[1745319953337,14.09958155,1625.5,1625.1,0.8238]
[1745319953551,12.25855324,1625.5,1625.2,0.68131843]
[1745319953864,12.25855324,1625.5,1625.1,1.33008355]
[1745319954043,12.25855324,1625.5,1625.3,0.68126806]
[1745319954241,12.25855324,1625.5,1625.1,1.33008355]
[1745319954242,12.25855324,1625.5,1625.2,0.68131843]
[1745319954473,12.25855324,1625.5,1625.4,0.6812177]
[1745319954637,12.25855324,1625.5,1625.3,0.68126806]
[1745319954965,12.25855324,1625.5,1625.4,0.6812177]
[1745319955260,12.25855324,1625.5,1625.1,1.33008355]
[1745319955462,12.25855324,1625.5,1625.4,0.68119919]
[1745319955668,14.09958155,1625.5,1625.4,0.19206198]
[1745319955835,14.09958155,1625.5,1625.4,0.87326117]
[1745319956036,14.09958155,1625.5,1625.4,0.19206198]
[1745319956262,14.09958155,1625.5,1625.4,0.87326117]
[1745319956467,14.09958155,1625.5,1625.4,0.19206198]
[1745319956650,12.25855324,1625.5,1625.4,0.19206198]
[1745319956853,12.57940007,1625.5,1625.4,0.19206198]
[1745319957053,12.57940007,1625.5,1625.4,0.87326117]
[1745319957264,12.57940007,1625.5,1625.4,0.19206198]
[1745319957434,12.57940007,1625.5,1625.4,0.87327043]
[1745319957763,12.57940007,1625.5,1625.4,0.87327968]
[1745319958255,14.45251306,1625.5,1625.4,0.87327968]
[1745319958553,14.45251306,1625.5,1625.4,0.6812177]
[1745319958777,20.60478479,1625.5,1625.1,0.8238]
[1745319958986,18.7316718,1625.5,1625.2,0.68129993]
[1745319959282,18.7316718,1625.5,1625.3,0.1920661]
[1745319959443,18.7316718,1625.5,1625.3,0.87331566]
[1745319959639,18.7316718,1625.5,1625.3,0.1920661]
[1745319959842,12.57940007,1625.5,1625.4,0.68120845]
[1745319960173,20.60483475,1625.5,1625.3,0.1920661]
[1745319960378,14.45251699,1625.5,1625.4,0.68122695]
[1745319960671,20.60483475,1625.5,1625.1,0.8238]
[1745319960877,20.60483475,1625.5,1625.4,0.68120845]
[1745319960878,14.45251699,1625.5,1625.4,0.68120845]
[1745319961376,13.69491699,1625.5,1625.4,0.19205952]
[1745319961575,13.69491699,1625.5,1625.4,0.87326797]
[1745319962610,5.66984683,1625.5,1625.4,0.87326797]
[1745319964069,11.74984683,1625.5,1625.4,0.87326797]
[1745319964777,17.90180007,1625.5,1625.4,0.87326797]
[1745319965372,11.74984683,1625.5,1625.4,0.87326797]
[1745319966391,17.90180007,1625.5,1625.4,0.87326797]
[1745319969985,11.82180007,1625.5,1625.4,0.87326797]
[1745319970282,14.22716133,1625.5,1625.4,0.87326797]
[1745319971489,11.82180007,1625.5,1625.4,0.87326797]
[1745319972585,6.47280007,1625.5,1625.4,0.87326797]
[1745319978159,6.47280007,1625.5,1625.4,0.19205952]
[1745319978359,6.47280007,1625.5,1625.4,0.8731008]
[1745319980461,0.32084683,1625.5,1625.4,0.8731008]
[1745319980881,0.32084683,1625.5,1625.4,0.19205952]
[1745319981088,0.32084683,1625.5,1625.4,0.87307305]
[1745319981294,0.32084683,1625.5,1625.4,0.19205952]
[1745319981499,0.32084683,1625.5,1625.4,0.87307305]
[1745319981677,6.47280007,1625.5,1625.4,0.19205952]
[1745319981877,0.32084683,1625.5,1625.4,0.8730823]
[1745319982073,0.32084683,1625.5,1625.4,0.19205952]
[1745319982486,2.92411277,1625.5,1625.4,0.87270172]
[1745319982667,9.07606601,1625.5,1625.4,0.19205952]
[1745319982870,9.07606601,1625.5,1625.4,0.87267396]
[1745319983116,9.07606601,1625.5,1625.4,0.19205952]
[1745319983274,9.07606601,1625.5,1625.4,0.87263696]
[1745319983474,0.11698248,1625.4,1625.1,1.66372929]
[1745319984071,0.3208248,1625.3,1625.1,1.66372929]
[1745319986313,0.3208248,1625.3,1625.0,1.22971955]
[1745319986604,6.15363916,1625.1,1624.8,0.7813]
[1745319986822,11.49833219,1625.2,1624.8,2.44502929]
[1745319987104,5.345,1625.2,1624.9,1.66372929]
[1745319987479,11.49809817,1625.2,1625.0,0.56850134]
[1745319988706,5.345,1625.2,1625.0,0.56850134]
[1745319988875,5.345,1625.2,1625.0,3.01353063]
[1745319989076,5.345,1625.2,1625.1,1.66372929]
[1745319989286,5.345,1625.2,1625.1,2.23221726]
[1745319990913,0.3208248,1625.3,1625.1,2.23221726]
[1745319991411,0.3208248,1625.3,1625.1,0.56848797]
[1745319995279,0.3208248,1625.3,1625.1,1.0820273]
[1745319996092,0.3208248,1625.3,1625.2,0.19206939]
[1745319996298,0.3208248,1625.3,1625.2,3.9776747]
[1745319996496,0.3208248,1625.3,1625.2,4.54609379]
[1745320004789,0.3208248,1625.3,1625.2,8.96562195]
[1745320004994,0.3208248,1625.3,1625.2,16.06662693]
[1745320005223,0.3208248,1625.3,1625.2,16.00509877]
[1745320008005,0.3208248,1625.3,1625.2,16.46401251]
[1745320015403,0.3208248,1625.3,1625.2,14.34157129]
[1745320019428,0.3208248,1625.3,1625.2,1.21940222]
[1745320019839,1.1093248,1625.3,1625.2,0.76048848]
[1745320020149,1.1093248,1625.3,1625.2,2.42365257]
[1745320021145,1.1093248,1625.3,1625.2,0.76048848]
[1745320022946,7.26203506,1625.3,1625.2,0.76048848]
[1745320023133,9.826727,1625.3,1625.2,0.76048848]
[1745320023313,9.826727,1625.3,1625.2,0.19206939]
[1745320024028,9.826727,1625.3,1625.2,0.62879725]
[1745320024209,6.15342314,1625.2,1624.8,3.7866821]
[1745320024416,13.02192314,1625.2,1624.8,3.7866821]
[1745320024613,1.30219231,1625.1,1624.8,3.7866821]
[1745320024839,1.6230553,1625.1,1624.9,0.436879]
[1745320025121,0.32086299,1625.1,1625.0,3.7866821]
[1745320025316,0.32086299,1625.1,1625.0,4.22351071]
[1745320025517,0.32086299,1625.1,1625.0,4.41559724]
[1745320025721,6.8685,1625.2,1625.0,4.41559724]
[1745320026265,6.08,1625.2,1625.0,4.22351071]
[1745320027422,6.08,1625.2,1625.1,0.19207893]
[1745320027624,6.08,1625.2,1625.1,0.62892193]
[1745320028640,6.93854448,1625.3,1625.1,0.62892193]
[1745320028842,8.81383961,1625.3,1625.1,0.436843]
[1745320029376,2.66109513,1625.3,1625.1,0.436843]
[1745320029753,0.7858,1625.3,1625.2,3.7866821]
[1745320029922,0.7858,1625.3,1625.2,3.97874762]
[1745320030492,0.7858,1625.3,1625.2,4.41718692]
[1745320030643,0.32083953,1625.4,1625.2,5.22498692]
[1745320030961,0.32083953,1625.4,1625.2,4.2251214]
[1745320031130,6.15196449,1625.5,1625.2,4.68412822]
[1745320031461,18.39326723,1625.6,1625.2,4.68412822]
[1745320031879,18.39326723,1625.6,1625.3,0.19205281]
[1745320032375,18.39326723,1625.6,1625.4,0.43756853]
[1745320032575,1.83932672,1625.5,1625.4,0.43756853]
[1745320032732,1.83932672,1625.5,1625.3,0.19205281]
[1745320032931,1.83932672,1625.5,1625.2,4.24568892]
[1745320033170,6.90499218,1625.4,1625.3,0.43760966]
[1745320033530,6.90499218,1625.4,1625.0,4.5944821]
[1745320033730,8.39463834,1625.4,1625.1,0.43771041]
[1745320036328,14.54724386,1625.4,1625.1,0.43771041]
[1745320036530,2.24214616,1625.4,1625.1,0.43771041]
[1745320036731,6.90545176,1625.3,1625.1,0.43771041]
[1745320038871,0.7525,1625.2,1625.1,0.43771041]
[1745320039036,6.15351958,1625.1,1624.8,3.7866821]
[1745320039459,6.15351958,1625.1,1624.9,0.43936097]
[1745320039773,12.24279899,1625.2,1625.0,3.7866821]
[1745320039949,18.3961739,1625.2,1625.0,4.22596495]
[1745320040139,12.24279899,1625.2,1625.0,0.43928285]
[1745320040339,1.2242799,1625.1,1624.8,3.7866821]
[1745320040655,1.2242799,1625.1,1624.9,0.43936097]
[1745320040861,1.2242799,1625.1,1624.8,3.7866821]
[1745320041058,7.37779626,1625.1,1624.8,3.7866821]
[1745320041380,13.45779626,1625.1,1624.9,0.43936097]
[1745320041670,1.34577963,1625.0,1624.9,0.43936097]
[1745320041845,13.45779626,1625.1,1624.8,3.7866821]
[1745320042045,13.45779626,1625.1,1624.9,0.43936097]
[1745320042463,13.45779626,1625.1,1624.8,3.7866821]
[1745320042672,13.45779626,1625.1,1625.0,0.43931058]
[1745320042967,0.7525,1625.0,1624.8,3.7866821]
[1745320043664,8.32738331,1625.0,1624.8,3.7866821]
[1745320043870,6.1544632,1624.9,1624.6,3.7866821]
[1745320044274,12.30897346,1624.9,1624.6,3.7866821]
[1745320044472,0.7525,1624.8,1624.7,0.19212999]
[1745320044977,8.21325079,1624.8,1624.7,0.19212999]
[1745320045482,2.05864715,1624.8,1624.7,0.19212999]
[1745320045778,2.05864715,1624.8,1624.6,3.7866821]
[1745320046576,1.30614715,1624.8,1624.6,3.7866821]
[1745320046789,7.5750358,1625.0,1624.7,0.831]
[1745320046948,5.338,1625.0,1624.8,3.7866821]
[1745320047290,6.40089102,1625.1,1624.9,0.831]
[1745320047459,6.08,1625.1,1625.0,4.19745782]
[1745320047646,0.8289,1625.4,1625.0,4.7003036]
[1745320047846,1.14973818,1625.4,1625.2,3.7866821]
[1745320048048,1.14973818,1625.4,1625.3,0.40909255]
[1745320051696,1.14973818,1625.4,1625.3,0.60115428]
[1745320053770,1.14973818,1625.4,1625.3,0.40909255]
[1745320054356,3.02170963,1625.4,1625.3,0.40909255]
[1745320057370,3.02170963,1625.4,1625.1,0.45559475]
[1745320057561,3.02170963,1625.4,1625.2,0.40905528]
[1745320057761,3.02170963,1625.4,1625.0,3.7866821]
[1745320057964,3.02170963,1625.4,1625.1,0.40910567]
[1745320058385,3.02170963,1625.4,1625.2,0.19206349]
[1745320058591,9.17413694,1625.4,1625.3,0.4090049]
[1745320059159,6.15271026,1625.3,1625.2,0.19206349]
[1745320059459,15.73465721,1625.3,1625.2,0.19206349]
[1745320060071,0.7608,1624.8,1624.6,3.7866821]
[1745320060273,0.7608,1624.8,1624.7,0.36531747]
[1745320060970,6.91540364,1624.8,1624.7,0.36531747]
[1745320061483,6.91540364,1624.8,1624.7,0.5574502]
[1745320061796,14.30239383,1624.8,1624.7,0.5574502]
[1745320063095,14.30239383,1624.8,1624.7,0.36531747]
[1745320063407,14.30239383,1624.8,1624.4,3.7866821]
[1745320063560,14.30239383,1624.8,1624.7,0.36919268]
[1745320063760,14.30239383,1624.8,1624.4,3.7866821]
[1745320063992,14.30239383,1624.8,1624.5,0.3692935]
[1745320064289,14.30239383,1624.8,1624.5,0.56142975]
[1745320064497,6.91616131,1624.6,1624.5,0.56142975]
[1745320064674,12.25016131,1624.6,1624.5,0.19213625]
[1745320065294,6.15608747,1624.5,1624.1,0.7933]
[1745320065465,6.15625916,1624.4,1624.2,0.3156028]
[1745320065668,6.15625916,1624.4,1624.1,0.7933]
[1745320065965,1.83923466,1624.4,1624.2,0.31561206]
[1745320066285,1.83923466,1624.4,1624.3,0.3155709]
[1745320066482,1.83923466,1624.4,1624.1,0.7933]
[1745320066686,1.83923466,1624.4,1624.2,0.31562132]
[1745320066997,1.83923466,1624.4,1624.1,0.7933]
[1745320067299,1.83923466,1624.4,1624.2,0.31562132]
[1745320067494,1.83923466,1624.4,1624.1,0.7933]
[1745320067797,8.75623808,1624.4,1624.2,0.31562132]
[1745320067997,7.03212199,1624.3,1624.2,0.31562132]
[1745320068195,0.87562381,1624.3,1624.0,3.7866821]
[1745320068411,7.03212199,1624.3,1624.2,0.31561206]
[1745320068571,7.03212199,1624.3,1624.1,0.3156625]
[1745320068771,0.7032122,1624.2,1623.9,4.5799821]
[1745320069006,0.7032122,1624.2,1624.0,0.31571294]
[1745320069969,0.87562381,1624.3,1624.0,0.31571294]
[1745320070171,7.03212505,1624.3,1624.0,0.31571294]
[1745320072609,13.11212505,1624.3,1624.0,0.31571294]
[1745320073517,6.15699563,1624.2,1624.0,0.31571294]
[1745320073812,6.15698592,1624.2,1624.0,0.31571294]
[1745320074107,0.61569859,1624.1,1624.0,0.31571294]
[1745320074476,13.11234,1624.3,1624.0,0.31571294]
[1745320076114,6.95562381,1624.3,1624.0,4.10239504]
[1745320076286,13.11216201,1624.3,1624.0,4.10239504]
[1745320079314,6.91910226,1624.2,1624.0,0.31571294]
[1745320079479,0.69191023,1624.1,1623.8,4.24805377]
[1745320079806,0.69191023,1624.1,1623.9,0.32477123]
[1745320079987,0.7621,1624.2,1624.0,3.7866821]
[1745320080182,0.7621,1624.2,1624.1,0.32467032]
[1745320082097,13.87442166,1624.3,1624.1,0.32467032]
[1745320082298,6.95562381,1624.3,1624.2,4.5441821]
[1745320082476,6.08,1624.3,1624.2,4.86899553]
[1745320083811,6.08,1624.3,1624.2,11.02587276]
[1745320084390,0.32102327,1624.5,1624.3,0.7575]
[1745320084590,0.32102327,1624.5,1624.4,4.10936254]
[1745320084819,0.32102327,1624.5,1624.4,12.1868659]
[1745320085118,0.32102327,1624.5,1624.4,12.37900543]
[1745320085815,6.08,1624.8,1624.4,12.37900543]
[1745320085983,6.08,1624.8,1624.6,3.7866821]
[1745320086179,6.08,1624.8,1624.7,1.07819104]
[1745320086384,7.23705059,1625.0,1624.7,1.07819104]
[1745320086611,0.72370506,1624.9,1624.7,1.07819104]
[1745320086993,0.32094236,1625.0,1624.7,1.07819104]
[1745320087183,6.47481344,1625.0,1624.7,1.07819104]
[1745320087723,0.32094236,1625.0,1624.7,1.07819104]
[1745320090388,0.32094236,1625.0,1624.8,3.7866821]
[1745320090588,0.32094236,1625.0,1624.9,0.31439865]
[1745320090883,1.57830838,1625.0,1624.9,1.06589865]
[1745320091088,0.32094236,1625.0,1624.9,0.31439865]
[1745320091288,6.15361787,1625.1,1624.8,3.7866821]
[1745320091489,6.15361787,1625.1,1624.9,0.31439865]
[1745320091722,6.15361787,1625.1,1624.8,3.7866821]
[1745320091928,6.15361787,1625.1,1624.9,0.31440791]
[1745320092080,8.10284214,1625.1,1624.8,3.7866821]
[1745320092285,8.10284214,1625.1,1624.9,0.31440791]
[1745320092521,8.10284214,1625.1,1624.8,3.7866821]
[1745320092721,8.10284214,1625.1,1624.9,0.31440791]
[1745320093034,6.15389614,1625.0,1624.8,3.7866821]
[1745320093327,14.25659699,1625.1,1624.8,3.7866821]
[1745320093632,8.10284214,1625.1,1624.8,3.7866821]
[1745320093813,14.25656371,1625.1,1624.8,3.7866821]
[1745320094038,8.10284214,1625.1,1624.8,3.7866821]
[1745320095317,0.9,1625.0,1624.8,3.7866821]
[1745320096353,7.05386302,1625.0,1624.8,3.7866821]
[1745320096963,0.9,1625.0,1624.8,3.7866821]
[1745320097259,6.15498245,1624.7,1624.5,0.7515]
[1745320097417,6.15486749,1624.8,1624.5,0.7515]
[1745320097773,12.30978917,1624.8,1624.4,3.7866821]
[1745320097962,6.15486749,1624.8,1624.4,3.7866821]
[1745320098616,6.15512474,1624.7,1624.4,3.7866821]
[1745320098817,6.93952474,1624.7,1624.4,3.7866821]
[1745320099453,0.7844,1624.7,1624.4,3.7866821]
[1745320099818,6.93940302,1624.7,1624.4,3.7866821]
[1745320101343,0.7844,1624.7,1624.4,3.7866821]
[1745320101546,0.7844,1624.7,1624.4,4.25053878]
[1745320102270,12.23446261,1624.9,1624.6,3.7866821]
[1745320102632,6.15481481,1624.8,1624.6,3.7866821]
[1745320104253,13.01883073,1624.9,1624.6,3.7866821]
[1745320104564,6.15468648,1624.8,1624.6,3.7866821]
[1745320106261,6.08,1624.9,1624.6,3.7866821]
[1745320106451,6.08,1624.9,1624.7,0.7702]
[1745320106662,6.08,1624.9,1624.8,3.7866821]
[1745320107548,6.08,1624.9,1624.8,4.10253065]
[1745320108074,6.15365619,1625.1,1624.8,4.29464149]
[1745320108654,0.8121,1625.3,1625.0,3.7866821]
[1745320108655,13.04494214,1625.3,1625.0,3.7866821]
[1745320108854,21.65087406,1625.3,1625.0,3.7866821]
[1745320109069,15.49789133,1625.3,1625.1,0.31322076]
[1745320109276,15.49785601,1625.3,1625.1,0.31322076]
[1745320109488,14.68575601,1625.3,1625.1,0.31322076]
[1745320109793,8.53294919,1625.3,1625.1,0.31322076]
[1745320110283,2.45294919,1625.3,1625.1,0.31322076]
[1745320110483,24.52924154,1625.4,1625.1,0.31322076]
[1745320110884,24.52926143,1625.4,1625.1,0.31322076]
[1745320111384,6.15275882,1625.3,1625.1,0.31322076]
[1745320112185,6.15308885,1625.2,1625.1,0.31322076]
[1745320112387,6.15275882,1625.3,1625.1,0.31322076]
[1745320112688,8.60569928,1625.3,1625.1,0.31322076]
[1745320119385,6.15275882,1625.3,1625.1,0.31322076]
[1745320120795,12.30574138,1625.3,1625.1,0.31322076]
[1745320121995,6.15275882,1625.3,1625.1,0.31322076]
[1745320124218,18.37657644,1625.4,1625.1,0.31322076]
[1745320124495,24.52920116,1625.4,1625.1,0.31322076]
[1745320124695,6.15294486,1625.3,1625.1,0.31322076]
[1745320125409,6.15308885,1625.2,1625.1,0.31322076]
[1745320125593,6.15294486,1625.3,1625.1,0.31322076]
[1745320132385,20.86165517,1625.4,1625.1,1.12882076]
[1745320132585,20.04955517,1625.4,1625.1,1.12882076]
[1745320132889,14.71755517,1625.4,1625.1,1.12882076]
[1745320133210,6.08,1625.4,1625.3,0.8156]
[1745320133614,6.08,1625.4,1625.3,1.12374704]
[1745320134118,6.08,1625.4,1625.3,0.30814704]
[1745320134423,6.08,1625.4,1625.3,0.50021368]
[1745320137384,12.23197636,1625.5,1625.3,0.50021368]
[1745320137584,14.63513725,1625.5,1625.3,0.50021368]
[1745320137814,14.63513725,1625.5,1625.4,0.19206664]
[1745320138011,14.63513725,1625.5,1625.4,0.49648956]
[1745320142224,14.63513725,1625.5,1625.4,0.30442292]
[1745320142424,14.63513725,1625.5,1625.2,4.6022821]
[1745320142609,14.63513725,1625.5,1625.4,0.30443217]
[1745320142797,14.63513725,1625.5,1625.2,4.6022821]
[1745320143001,14.63513725,1625.5,1625.4,0.30443217]
[1745320143200,14.63513725,1625.5,1625.2,4.6022821]
[1745320143401,12.23197636,1625.5,1625.4,0.30443217]
[1745320143722,6.08,1625.5,1625.3,0.4965595]
[1745320143884,6.08,1625.5,1625.4,0.30443217]
[1745320144089,0.32082792,1625.6,1625.4,4.86731427]
[1745320144318,0.32082792,1625.6,1625.5,0.48673143]
[1745320144480,0.32082792,1625.6,1625.5,0.49529892]
[1745320147540,13.02334879,1625.8,1625.5,0.49529892]
[1745320148433,13.02334879,1625.8,1625.6,0.19202909]
[1745320148596,13.02334879,1625.8,1625.6,0.49317113]
[1745320149340,19.17442029,1625.8,1625.6,0.30114204]
[1745320149538,15.50546959,1625.8,1625.6,0.30114204]
[1745320149698,15.50546959,1625.8,1625.4,5.0282156]
[1745320149905,15.50546959,1625.8,1625.7,0.30109168]
[1745320150109,15.50546959,1625.8,1625.4,5.0282156]
[1745320150302,15.50546959,1625.8,1625.7,0.30109168]
[1745320150929,15.50546959,1625.8,1625.4,5.0282156]
[1745320151136,14.71316959,1625.8,1625.7,0.30109168]
[1745320151302,15.51736959,1625.8,1625.5,0.7955]
[1745320151632,15.51736959,1625.8,1625.6,0.30114204]
[1745320151815,15.51714684,1625.8,1625.6,0.30114204]
[1745320154234,6.1511964,1625.7,1625.6,0.30114204]
[1745320154436,6.1521201,1625.5,1625.1,4.5821821]
[1745320154635,6.15252988,1625.4,1625.1,0.7955]
[1745320154935,6.95672988,1625.4,1625.0,4.5821821]
[1745320155105,13.03672988,1625.4,1625.0,4.5821821]
[1745320155306,13.03672988,1625.4,1625.0,5.38693013]
[1745320155538,13.03672988,1625.4,1625.1,0.19207389]
[1745320156237,6.15308885,1625.2,1625.1,0.19207389]
[1745320156599,6.15308885,1625.2,1624.9,0.7955]
[1745320157008,6.15286195,1625.3,1624.9,0.7955]
[1745320157440,12.30591509,1625.3,1624.9,0.7955]
[1745320157743,6.15286195,1625.3,1625.0,0.19208707]
[1745320158242,7.33989653,1625.3,1625.0,0.19208707]
[1745320159147,7.33989653,1625.3,1624.9,0.7955]
[1745320159350,6.15286195,1625.3,1624.9,0.7955]
[1745320161349,12.30590681,1625.3,1624.9,0.7955]
[1745320161646,12.3058835,1625.3,1625.0,0.19208867]
[1745320161811,6.95758184,1625.2,1625.0,0.19208867]
[1745320162936,13.11098691,1625.2,1624.8,4.5821821]
[1745320163447,6.95758184,1625.2,1624.8,4.5821821]
[1745320163650,6.15359985,1625.1,1624.8,4.5821821]
[1745320164013,6.15359985,1625.1,1624.9,0.19210033]
[1745320164852,6.95758184,1625.2,1624.9,0.19210033]
[1745320165255,6.95758184,1625.2,1625.0,0.19210033]
[1745320166265,6.47382023,1625.3,1625.0,3.97878243]
[1745320166447,0.32086217,1625.3,1625.0,4.5370821]
[1745320167357,6.47358824,1625.3,1625.0,4.5370821]
[1745320167563,8.95836123,1625.3,1625.1,0.25870476]
[1745320171766,0.32086217,1625.3,1625.1,0.25870476]
[1745320171974,0.32086217,1625.3,1625.2,4.5370821]
[1745320172141,6.08,1625.4,1625.2,4.79575499]
[1745320172349,24.52525243,1625.6,1625.2,4.79575499]
[1745320172545,6.15196579,1625.5,1625.2,4.5370821]
[1745320172790,24.52531364,1625.6,1625.3,0.25858553]
[1745320172947,26.69647794,1625.6,1625.3,0.25858553]
[1745320173481,6.15195447,1625.5,1625.3,0.25858553]
[1745320173975,6.15233173,1625.4,1625.3,0.25858553]
[1745320174343,6.15233173,1625.4,1625.1,0.7504]
[1745320174544,6.15233173,1625.4,1625.2,0.25864515]
[1745320174778,6.15195447,1625.5,1625.1,0.7504]
[1745320174982,6.15195447,1625.5,1625.2,0.25864515]
[1745320175145,8.20642635,1625.5,1625.1,0.7504]
[1745320175345,14.35868679,1625.5,1625.2,0.25864515]
[1745320175572,8.20642635,1625.5,1625.1,0.7504]
[1745320175757,14.35865942,1625.5,1625.2,0.25864515]
[1745320175964,14.3586519,1625.5,1625.1,0.7504]
[1745320176146,8.20642635,1625.5,1625.2,0.25864515]
[1745320176484,0.82064263,1625.4,1625.1,0.7504]
[1745320176683,0.82064263,1625.4,1625.0,3.7866821]
[1745320176684,6.15274145,1625.3,1625.0,3.7866821]
[1745320177170,12.3057359,1625.3,1625.0,3.7866821]
[1745320177687,6.15274145,1625.3,1625.0,3.7866821]
[1745320178260,12.23274145,1625.3,1625.0,3.7866821]
[1745320179988,18.38570931,1625.3,1625.1,0.19208505]
[1745320180190,20.30614024,1625.3,1625.1,0.19208505]
[1745320181666,20.30614024,1625.3,1625.0,3.7866821]
[1745320182392,20.30614024,1625.3,1625.1,0.25523009]
[1745320183083,6.15308885,1625.2,1625.1,0.25523009]
[1745320183402,6.15308885,1625.2,1625.1,0.4473193]
[1745320184503,8.18371497,1625.2,1625.1,0.4473193]
[1745320187307,2.03062612,1625.2,1625.1,0.4473193]
[1745320187514,17.55174145,1625.3,1625.1,0.4473193]
[1745320187807,17.87259355,1625.3,1625.1,0.4473193]
[1745320188279,11.7198521,1625.3,1625.1,0.4473193]
[1745320188477,11.7198521,1625.3,1625.2,0.19208921]
[1745320188678,11.7198521,1625.3,1625.2,0.44725963]
[1745320188893,17.87256236,1625.3,1625.2,0.44725963]
[1745320190606,11.7198521,1625.3,1625.2,0.44725963]
[1745320190805,6.4008521,1625.3,1625.2,4.23394173]
[1745320191007,6.38516698,1625.3,1625.2,5.4842059]
[1745320191309,6.06431488,1625.3,1625.2,5.4842059]
[1745320192625,6.06431488,1625.3,1625.2,5.95500975]
[1745320193203,6.06431488,1625.3,1625.2,8.95500975]
[1745320193812,12.96872306,1625.8,1625.3,0.7517]
[1745320194013,12.96872306,1625.8,1625.5,3.7866821]
[1745320194407,12.96872306,1625.8,1625.6,0.25489115]
[1745320196924,6.06431488,1625.8,1625.6,1.03529115]
[1745320197487,12.21516766,1625.8,1625.6,1.03529115]
[1745320198116,6.06431488,1625.8,1625.6,1.03529115]
[1745320198622,5.319,1625.9,1625.7,3.7866821]
[1745320199025,0.32081298,1626.0,1625.7,3.7866821]
[1745320199245,0.32081298,1626.0,1625.8,0.25476275]
[1745320200140,0.32081298,1626.0,1625.9,3.7866821]
[1745320200451,0.32081298,1626.0,1625.9,4.23086509]
[1745320200645,6.47087448,1626.0,1625.9,0.44418299]
[1745320201005,6.1500615,1626.0,1625.9,0.44418299]
[1745320202032,6.1500615,1626.0,1625.9,0.25220403]
[1745320202232,12.30039862,1626.0,1625.7,0.7804]
[1745320202400,6.1500615,1626.0,1625.8,0.25225437]
[1745320204028,12.29992203,1626.1,1625.8,4.03893647]
[1745320204330,6.15008197,1626.0,1625.8,4.03893647]
[1745320204521,12.29994528,1626.1,1625.8,4.03893647]
[1745320204832,18.36426016,1626.1,1625.8,4.03893647]
[1745320205030,12.21423068,1626.1,1625.8,4.03893647]